[Event "GER-ch Youth U16 2020"]
[Site "Willingen"]
[Date "2020.10.23"]
[Round "6.2"]
[White "Köllner, Ruben Gideon"]
[Black "Fromm, Marius"]
[Result "1-0"]
[ECO "D12"]
[WhiteElo "2337"]
[BlackElo "2190"]
[Annotator "RC"]
[PlyCount "67"]
[EventDate "2020.10.20"]
[EventType "swiss"]
[EventRounds "7"]
[EventCountry "GER"]
[SourceTitle "playchess.com"]
[Source "ChessBase"]
[SourceQuality "1"]
[TimeControl "40/5400+30:1800+30"]

1. d4 Nf6 2. Nf3 d5 3. e3 Bf5 4. c4 c6 5. Nc3 a6 6. Qb3 Ra7 7. Be2 {[%emt 0:08:05]} e6 {[%emt 0:09:50]} 8. Ne5 {[%emt 0:09:14]} Nbd7 {[%emt 0:03:51]} 9. f4 {[%emt 0:04:07]} Be7 {[%emt 0:05:02]} 10. Bd2 {[%emt 0:01:10]} O-O {[%emt 0:05:47]} 11. O-O {[%emt 0:00:19]} Ne4 {[%emt 0:04:01]} 12. Nxe4 {[%emt 0:00:42]} Bxe4 {[%emt 0:00:07]} 13. Bd3 {[%emt 0:05:37]} Bxd3 {[%emt 0:02:01]} 14. Nxd3 {[%emt 0:00:19]} Nf6 {[%emt 0:03:23]} 15. Bb4 {[%emt 0:01:14]} Ra8 {[%emt 0:02:27]} 16. Bxe7 {[%emt 0:01:11]} Qxe7 {[%emt 0:00:04]} 17. c5 {[%emt 0:00:43]} Rfe8 {[%emt 0:10:55]} 18. a4 {[%emt 0:02:24]} Ng4 {[%emt 0:11:02]} 19. Rfe1 {[%emt 0:05:14]} a5 {[%emt 0:04:13]} 20. Qc2 {[%emt 0:01:01]} f6 {[%emt 0:01:51]} 21. Rab1 {[%emt 0:01:53]} Nh6 {[%emt 0:02:57]} 22. b4 {[%emt 0:00:29]} axb4 {[%emt 0:00:24]} 23. Rxb4 {[%emt 0:00:12]} Ra7 {[%emt 0:05:59]} 24. Qb3 {[%emt 0:03:16]} Rc8 {[%emt 0:01:50]} 25. e4 {[%emt 0:02:17]} dxe4 {[%emt 0:07:22]} 26. Rxe4 {[%emt 0:00:05]} Re8 {[%emt 0:00:05]} 27. Nb2 {[%emt 0:08:11]} Nf5 {[%emt 0:06:21]} 28. g4 {[%emt 0:01:52]} Nh6 {[%emt 0:01:25]} 29. f5 {[%emt 0:00:10]} Nf7 {[%emt 0:00:26]} 30. Rxe6 {[%emt 0:00:36]} Qd7 {[%emt 0:00:06]} 31. d5 {[%emt 0:05:13]} cxd5 {[%emt 0:01:09]} 32. Rxb7 {[%emt 0:00:12]} Qc8 {[%emt 0:02:42]} 33. Rxe8+ {[%emt 0:01:09]} Qxe8 {[%emt 0:00:05]} 34. Rb8 {[%emt 0:00:07]} 1-0

[Event "GER-ch Youth U16 2020"]
[Site "Willingen"]
[Date "2020.10.23"]
[Round "6.7"]
[White "Müller, Magnus"]
[Black "Nguyen, Alex Dac-Vuong"]
[Result "1-0"]
[ECO "A45"]
[WhiteElo "2030"]
[BlackElo "2343"]
[Annotator "RC"]
[PlyCount "65"]
[EventDate "2020.10.20"]
[EventType "swiss"]
[EventRounds "7"]
[EventCountry "GER"]
[SourceTitle "playchess.com"]
[Source "ChessBase"]
[SourceQuality "1"]
[TimeControl "40/5400+30:1800+30"]

1. d4 {[%emt 0:01:23]} Nf6 {[%emt 0:00:00]} 2. Bf4 {[%emt 0:03:09]} e6 {[%emt 0:00:00]} 3. e3 {[%emt 0:00:08]} c5 {[%emt 0:00:00]} 4. c3 {[%emt 0:00:21]} Nc6 {[%emt 0:00:12]} 5. Nd2 {[%emt 0:00:05]} d5 {[%emt 0:00:04]} 6. Ngf3 {[%emt 0:00:06]} Bd6 {[%emt 0:00:06]} 7. Bg3 {[%emt 0:00:04]} O-O {[%emt 0:00:06]} 8. Bb5 {[%emt 0:00:38]} a6 {[%emt 0:05:37]} 9. Bxc6 {[%emt 0:00:06]} bxc6 {[%emt 0:00:04]} 10. Qa4 {[%emt 0:00:45]} Bb7 {[%emt 0:03:10]} 11. Bxd6 {[%emt 0:00:36]} Qxd6 {[%emt 0:00:09]} 12. Qa3 {[%emt 0:00:03]} Nd7 {[%emt 0:05:50]} 13. Nb3 {[%emt 0:04:22]} a5 {[%emt 0:05:02]} 14. Nxc5 {[%emt 0:16:08]} Nxc5 {[%emt 0:00:10]} 15. Qxc5 {[%emt 0:00:04]} Qxc5 {[%emt 0:01:42]} 16. dxc5 {[%emt 0:00:07]} a4 {[%emt 0:00:39]} 17. Kd2 {[%emt 0:05:28]} Ra5 {[%emt 0:06:41]} 18. b4 {[%emt 0:06:33]} axb3 {[%emt 0:00:34]} 19. axb3 {[%emt 0:00:04]} Rfa8 {[%emt 0:00:30]} 20. Rxa5 {[%emt 0:00:08]} Rxa5 {[%emt 0:00:05]} 21. Rc1 {[%emt 0:00:27]} Rxc5 {[%emt 0:01:17]} 22. Ra1 {[%emt 0:09:00]} Rb5 {[%emt 0:01:09]} 23. Nd4 {[%emt 0:00:45]} Rb6 {[%emt 0:00:07]} 24. b4 {[%emt 0:00:24]} g6 {[%emt 0:05:57]} 25. Ra7 {[%emt 0:04:52]} Kg7 {[%emt 0:03:20]} 26. Nb3 {[%emt 0:02:32]} e5 {[%emt 0:02:22]} 27. f4 {[%emt 0:13:35]} exf4 {[%emt 0:08:41]} 28. exf4 {[%emt 0:00:04]} Ba6 {[%emt 0:00:21]} 29. Nc5 {[%emt 0:06:26]} Bc4 {[%emt 0:01:25]} 30. Nd7 {[%emt 0:00:59]} Ra6 {[%emt 0:00:19]} 31. Rxa6 {[%emt 0:00:03]} Bxa6 {[%emt 0:00:10]} 32. Ke3 {[%emt 0:00:15]} Bc8 {[%emt 0:01:48]} 33. Nb8 {[%emt 0:01:39]} 1-0

[Event "GER-ch Youth U16 2020"]
[Site "Willingen"]
[Date "2020.10.23"]
[Round "6.9"]
[White "Reimer, Philip"]
[Black "Khachatryan, Taron"]
[Result "1/2-1/2"]
[ECO "B97"]
[WhiteElo "1984"]
[BlackElo "2136"]
[Annotator "ChessBase"]
[PlyCount "91"]
[EventDate "2020.10.20"]
[EventType "swiss"]
[EventRounds "7"]
[EventCountry "GER"]
[SourceTitle "playchess.com"]
[Source "ChessBase"]
[SourceQuality "1"]
[TimeControl "40/5400+30:1800+30"]

1. e4 {[%emt 0:00:00]} c5 {[%emt 0:00:00]} 2. Nf3 {[%emt 0:00:00]} d6 {[%emt 0:00:00]} 3. d4 {[%emt 0:00:02]} cxd4 {[%emt 0:00:00]} 4. Nxd4 {[%emt 0:00:06]} Nf6 {[%emt 0:00:00]} 5. Nc3 {[%emt 0:00:06]} a6 {[%emt 0:00:05]} 6. Bg5 {[%emt 0:00:06]} e6 {[%emt 0:00:05]} 7. f4 {[%emt 0:00:03]} Qb6 {[%emt 0:00:08]} 8. Qd3 {[%emt 0:00:07]} Qxb2 {[%emt 0:01:45]} 9. Rb1 {[%emt 0:00:04]} Qa3 {[%emt 0:00:08]} 10. f5 {[%emt 0:00:09]} Nc6 {[%emt 0:03:24]} 11. fxe6 {[%emt 0:12:48]} fxe6 {[%emt 0:00:11]} 12. Nxc6 {[%emt 0:01:21]} bxc6 {[%emt 0:00:16]} 13. Bxf6 {[%emt 0:31:13]} gxf6 {[%emt 0:00:11]} 14. e5 {[%emt 0:00:14]} dxe5 {[%emt 0:06:17]} 15. Be2 {[%emt 0:23:06]} Bb4 {[%emt 0:03:24]} 16. Rb3 {[%emt 0:01:48]} Qc1+ {[%emt 0:01:15]} 17. Bd1 {[%emt 0:00:13]} Bxc3+ {[%emt 0:10:36]} 18. Qxc3 {[%emt 0:00:11]} O-O {[%emt 0:06:34]} 19. O-O {[%emt 0:00:17]} Qh6 {[%emt 0:03:34]} 20. Qxc6 {[%emt 0:08:29]} Ra7 {[%emt 0:01:05]} 21. Bg4 {[%emt 0:06:41]} f5 {[%emt 0:16:08]} 22. Bxf5 {[%emt 0:07:20]} Raf7 {[%emt 0:00:24]} 23. Rg3+ {[%emt 0:03:26]} Kh8 {[%emt 0:01:15]} 24. Bd3 {[%emt 0:00:01]} Rxf1+ {[%emt 0:03:57]} 25. Bxf1 {[%emt 0:00:01]} Qd2 {[%emt 0:02:16]} 26. Rf3 {[%emt 0:01:30]} Qd4+ {[%emt 0:00:19]} 27. Kh1 {[%emt 0:00:10]} Qd8 {[%emt 0:01:22]} 28. Rxf8+ {[%emt 0:00:59]} Qxf8 {[%emt 0:00:46]} 29. Bxa6 {[%emt 0:01:38]} Bxa6 {[%emt 0:00:14]} 30. Qxa6 {[%emt 0:00:02]} Qf4 {[%emt 0:00:39]} 31. Qc8+ {[%emt 0:00:46]} Kg7 {[%emt 0:00:10]} 32. Qd7+ {[%emt 0:00:14]} Kh8 {[%emt 0:00:57]} 33. Qe8+ {[%emt 0:00:45]} Kg7 {[%emt 0:00:02]} 34. Qd7+ {[%emt 0:00:10]} Kh8 {[%emt 0:00:09]} 35. Qd1 {[%emt 0:00:27]} Qb4 {[%emt 0:04:34]} 36. Qd8+ {[%emt 0:00:43]} Kg7 {[%emt 0:00:17]} 37. Qg5+ {[%emt 0:00:08]} Kf7 {[%emt 0:00:27]} 38. Qh5+ {[%emt 0:00:15]} Kg8 {[%emt 0:00:57]} 39. Qe8+ {[%emt 0:01:24]} Kg7 {[%emt 0:00:17]} 40. Qd7+ {[%emt 0:00:10]} Kf6 {[%emt 0:03:29]} 41. Qd1 {[%emt 0:32:17]} Kg7 {[%emt 0:30:17]} 42. Qa1 {[%emt 0:00:48]} Qa5 {[%emt 0:03:04]} 43. a4 {[%emt 0:00:37]} Kf7 {[%emt 0:00:17]} 44. h3 {[%emt 0:00:21]} e4 {[%emt 0:00:24]} 45. Kg1 {[%emt 0:00:00]} Qc5+ 46. Kh2 1/2-1/2

[Event "GER-ch Youth U16 2020"]
[Site "Willingen"]
[Date "2020.10.23"]
[Round "6.10"]
[White "Skabs, Denis"]
[Black "Mainka, Alwin"]
[Result "1/2-1/2"]
[ECO "B21"]
[WhiteElo "1875"]
[BlackElo "1954"]
[Annotator "ChessBase"]
[PlyCount "68"]
[EventDate "2020.10.20"]
[EventType "swiss"]
[EventRounds "7"]
[EventCountry "GER"]
[SourceTitle "playchess.com"]
[Source "ChessBase"]
[SourceQuality "1"]
[TimeControl "40/5400+30:1800+30"]

1. e4 {[%emt 0:00:00]} c5 {[%emt 0:00:00]} 2. d4 {[%emt 0:00:00]} cxd4 {[%emt 0:00:00]} 3. c3 {[%emt 0:00:00]} d5 {[%emt 0:00:00]} 4. exd5 {[%emt 0:00:00]} Qxd5 {[%emt 0:00:04]} 5. cxd4 {[%emt 0:00:11]} Nc6 {[%emt 0:00:31]} 6. Nf3 {[%emt 0:00:17]} e6 {[%emt 0:01:30]} 7. Nc3 {[%emt 0:00:58]} Qd8 {[%emt 0:00:32]} 8. a3 {[%emt 0:08:14]} Be7 {[%emt 0:01:47]} 9. Bc4 {[%emt 0:03:06]} Nf6 {[%emt 0:00:28]} 10. Bg5 {[%emt 0:00:30]} O-O {[%emt 0:00:40]} 11. O-O {[%emt 0:00:12]} Na5 {[%emt 0:01:59]} 12. Ba2 {[%emt 0:01:58]} b6 {[%emt 0:02:24]} 13. Qd3 {[%emt 0:01:19]} Bb7 {[%emt 0:02:59]} 14. Rad1 {[%emt 0:01:11]} h6 {[%emt 0:05:39]} 15. Bh4 {[%emt 0:01:32]} Nd5 {[%emt 0:06:30]} 16. Bxe7 {[%emt 0:18:15]} Nxe7 {[%emt 0:02:58]} 17. Ne5 {[%emt 0:10:03]} Nac6 {[%emt 0:06:58]} 18. Bb1 {[%emt 0:10:25]} g6 {[%emt 0:01:36]} 19. Qe3 {[%emt 0:01:28]} Kg7 {[%emt 0:04:36]} 20. Rfe1 {[%emt 0:12:13]} Nd5 {[%emt 0:06:50]} 21. Nxd5 {[%emt 0:01:01]} Qxd5 {[%emt 0:00:42]} 22. Be4 {[%emt 0:02:11]} Qd6 {[%emt 0:01:03]} 23. Qg3 {[%emt 0:16:43]} Nxd4 {[%emt 0:09:08]} 24. Rxd4 {[%emt 0:01:16]} Qxd4 {[%emt 0:00:24]} 25. Bxb7 {[%emt 0:00:03]} Qd2 {[%emt 0:01:12]} 26. Nf3 {[%emt 0:00:53]} Qxb2 {[%emt 0:01:07]} 27. Bxa8 {[%emt 0:00:07]} Rxa8 {[%emt 0:00:07]} 28. Ne5 {[%emt 0:05:04]} Qd2 {[%emt 0:01:29]} 29. Rf1 {[%emt 0:01:02]} Rc8 {[%emt 0:01:23]} 30. Qf3 {[%emt 0:00:30]} Rc7 {[%emt 0:01:07]} 31. Rd1 {[%emt 0:01:58]} Qc3 {[%emt 0:00:12]} 32. Qf4 {[%emt 0:02:04]} g5 {[%emt 0:07:59]} 33. Qe3 {[%emt 0:00:55]} Rc5 {[%emt 0:03:06]} 34. Nd3 {[%emt 0:00:41]} Rd5 {[%emt 0:01:13]} 1/2-1/2

[Event "GER-ch Youth U16 2020"]
[Site "Willingen"]
[Date "2020.10.23"]
[Round "6.11"]
[White "Hommel, Niclas"]
[Black "Zackrisson, Peter"]
[Result "1-0"]
[ECO "B90"]
[WhiteElo "2047"]
[BlackElo "1947"]
[Annotator "ChessBase"]
[PlyCount "55"]
[EventDate "2020.10.20"]
[EventType "swiss"]
[EventRounds "7"]
[EventCountry "GER"]
[SourceTitle "playchess.com"]
[Source "ChessBase"]
[SourceQuality "1"]
[TimeControl "40/5400+30:1800+30"]

1. e4 {[%emt 0:00:00]} c5 {[%emt 0:00:00]} 2. Nf3 {[%emt 0:00:00]} d6 {[%emt 0:00:00]} 3. d4 {[%emt 0:00:00]} cxd4 {[%emt 0:00:00]} 4. Nxd4 {[%emt 0:00:00]} Nf6 {[%emt 0:00:00]} 5. Nc3 {[%emt 0:00:00]} a6 {[%emt 0:00:01]} 6. f3 {[%emt 0:00:00]} e5 {[%emt 0:00:12]} 7. Nb3 {[%emt 0:00:00]} Be7 {[%emt 0:00:07]} 8. Be3 {[%emt 0:00:00]} Be6 {[%emt 0:00:08]} 9. Qd2 {[%emt 0:00:01]} h5 {[%emt 0:00:08]} 10. O-O-O {[%emt 0:01:41]} b5 {[%emt 0:02:28]} 11. Nd5 {[%emt 0:08:20]} Bxd5 {[%emt 0:00:28]} 12. exd5 {[%emt 0:00:01]} Nbd7 {[%emt 0:01:07]} 13. Na5 {[%emt 0:05:17]} Nb6 {[%emt 0:01:14]} 14. Nc6 {[%emt 0:00:07]} Qc7 {[%emt 0:00:11]} 15. Bxb6 {[%emt 0:14:44]} Qxb6 {[%emt 0:00:12]} 16. Bd3 {[%emt 0:10:54]} Nd7 {[%emt 0:10:17]} 17. h4 {[%emt 0:10:21]} Bf6 {[%emt 0:03:47]} 18. Be4 {[%emt 0:04:28]} Nb8 {[%emt 0:01:46]} 19. Kb1 {[%emt 0:04:39]} Nxc6 {[%emt 0:01:03]} 20. dxc6 {[%emt 0:00:01]} O-O-O {[%emt 0:00:11]} 21. Qd5 {[%emt 0:04:03]} Rhf8 {[%emt 0:02:17]} 22. g4 {[%emt 0:03:57]} Kc7 {[%emt 0:01:37]} 23. g5 {[%emt 0:09:58]} Be7 {[%emt 0:00:12]} 24. Rd3 {[%emt 0:03:59]} f5 {[%emt 0:14:08]} 25. Bxf5 {[%emt 0:03:48]} Rxf5 {[%emt 0:02:31]} 26. Qe6 {[%emt 0:00:04]} Rf4 {[%emt 0:02:41]} 27. Qxe7+ {[%emt 0:00:06]} Kc8 {[%emt 0:00:08]} 28. Rxd6 {[%emt 0:01:17]} 1-0